Cogmind - Beta 13 @@@ ROGUE MODE // 2024.03.18 @ 21:34:02 Player: 3.14 Result: Escaped! Performance ------------- Evolutions (9) 4500 Regions Visited (27) 5400 Robots Destroyed (397) 1985 Value Destroyed (19380) 19380 Prototype IDs (52) 1040 Alien Tech Used (8) 1600 Bonus (10773) 10773 TOTAL SCORE: 44678 Bonus ------- High Alert Combat Kills 3548 Follower Combat Kills 1471 Network Hubs Disabled 200 Met Data Miner 300 Met Imprinter 300 Destroyed Z-Imprinter 1000 Triggered Deep Caves Wall 500 Exposed GOLEM Chamber 500 Met R17 at Cetus 500 Win 3000 Friendly Fire -546 Cogmind --------- Core Integrity 352/1600 Matter 278/300 Energy 183/1100 System Corruption 3% Temperature Cool (5) Movement Walking (122) Location To Epsilon Eridani Parts ------- > --- POWER (3) -------- (None) > --- PROPULSION (4) --- Enhanced Biometal Leg Assembled Alloy Leg Centrium Leg Centrium Leg > --- UTILITY (16) ----- Assembled Biocell Array Assembled Metafiber Network Machine Analyzer Improved Armor Integrity Analyzer GOLEM Unit Spacefold Activator > --- WEAPON (2) ------- (None) > --- INVENTORY (5) ---- Quantum Reactor Experimental EM Disruption Field Core Cannon Peak State ------------ > --- POWER ------------ Light Quantum Reactor Vortex Chain Reactor > --- PROPULSION ------- Centrium Leg High-density Centrium Leg High-density Centrium Leg High-density Centrium Leg > --- UTILITY ---------- Assembled Nanovents Assembled Biocell Array Assembled Biocell Array Assembled Metafiber Network Assembled Combat Suite Improved Armor Integrity Analyzer Centrium Heavy Armor Plating Assembled Alloy Armor Thermal Barrier Improved Hacking Suite System Shield Improved System Shield GOLEM Unit Spacefold Activator > --- WEAPON ----------- Assembled Focal Cannon Assembled Focal Cannon > --- INVENTORY -------- Light Antimatter Reactor Experimental EM Disruption Field Core Cannon [Rating: 220] Favorites ----------- Power Assembled Flux Generator Engine Reinforced Deuterium Engine Power Core Neutrino Core Reactor Assembled Flux Generator Propulsion Light Treads Treads Light Treads Leg Assembled Alloy Leg Wheel Wheel Flight Unit Nuclear Pulse Thruster Utility Huge Storage Unit Device Assembled Nanovents Storage Huge Storage Unit Processor Improved Armor Integrity Analyzer Hackware Improved Hacking Suite Protection Assembled Alloy Armor Artifact Spacefold Activator Weapon Assembled Focal Cannon Energy Gun Shock Rifle Energy Cannon Assembled Focal Cannon Ballistic Gun Light Assault Rifle Ballistic Cannon Light Cannon Launcher Grenade Launcher Impact Weapon Power Maul Slashing Weapon Katana Build | -11 -10 -10 -10 -8 -7 -7 -7 -7 -7 -6 -6 -6 -6 -6 -5 -5 -5 -5 -5 -5 -4 -3 -2 -2 -2 -1 -1 ------- Run | Yrd Mat Min Sub Mat Fac Low Low Zio Dee Pro Fac Low Low Dat Pro Fac Ext Cet Arc Hub Fac Res Res Qua Sec Acc Com Slots Evolved 18 | . . . . 4 2 . . . . . 2 . . . . 2 . . . . 2 2 2 . . 2 . Power 2 | . . . . . 1 . . . . . . . . . . . . . . . . . . . . 1 . Propulsion 2 | . . . . 2 . . . . . . . . . . . . . . . . . . . . . . . Utility 14 | . . . . 2 1 . . . . . 2 . . . . 2 . . . . 2 2 2 . . 1 . Weapon . | . . . . . . . . . . . . . . . . . . . . . . . . . . . . Parts Attached 346 | . 9 2 26 50 15 7 8 17 61 1 8 4 2 . 1 20 10 8 2 . 13 9 . 23 20 25 5 Power 19 | . . . 1 2 3 2 . 2 4 . . . . . . . . . 2 . . . . 1 . 2 . Engine 8 | . . . 1 2 1 2 . 1 1 . . . . . . . . . . . . . . . . . . Core 4 | . . . . . 2 . . 1 1 . . . . . . . . . . . . . . . . . . Reactor 7 | . . . . . . . . . 2 . . . . . . . . . 2 . . . . 1 . 2 . Propulsion 70 | . 2 . 3 10 2 . 3 3 10 1 5 1 . . . 6 1 1 . . 4 4 . 8 1 3 2 Treads 24 | . 2 . 3 9 2 . 3 2 3 . . . . . . . . . . . . . . . . . . Leg 43 | . . . . . . . . 1 7 1 5 1 . . . 6 1 1 . . 3 3 . 8 1 3 2 Wheel 1 | . . . . 1 . . . . . . . . . . . . . . . . . . . . . . . Hover . | . . . . . . . . . . . . . . . . . . . . . . . . . . . . Flight 2 | . . . . . . . . . . . . . . . . . . . . . 1 1 . . . . . Utility 156 | . 3 . 2 15 5 1 2 3 22 . 3 3 2 . 1 14 9 7 . . 8 4 . 11 19 20 2 Device 65 | . . . . 6 3 . 1 2 10 . . . . . . 8 3 . . . 3 2 . 7 14 6 . Storage 6 | . 1 . . . 1 . . . 1 . . . . . . . . 1 . . . . . . 1 1 . Processor 4 | . . . . . . . . . . . 1 . 1 . . . . . . . . 1 . . . 1 . Hackware 5 | . . . . . . . . . . . . . . . . . . . . . . . . . 2 3 . Protection 63 | . 2 . 2 9 1 1 1 1 11 . 2 3 1 . 1 6 6 6 . . 5 1 . 3 . 1 . Artifact 13 | . . . . . . . . . . . . . . . . . . . . . . . . 1 2 8 2 Weapon 101 | . 4 2 20 23 5 4 3 9 25 . . . . . . . . . . . 1 1 . 3 . . 1 Energy Gun 24 | . . . . 9 2 . 1 6 5 . . . . . . . . . . . 1 . . . . . . Energy Cannon 31 | . . . 6 3 3 2 1 . 12 . . . . . . . . . . . . 1 . 2 . . 1 Ballistic Gun 6 | . 1 . 2 3 . . . . . . . . . . . . . . . . . . . . . . . Ballistic Cannon 15 | . 2 1 6 6 . . . . . . . . . . . . . . . . . . . . . . . Launcher 18 | . 1 1 6 . . 2 1 1 6 . . . . . . . . . . . . . . . . . . Special Weapon . | . . . . . . . . . . . . . . . . . . . . . . . . . . . . Impact Weapon 5 | . . . . . . . . 2 2 . . . . . . . . . . . . . . 1 . . . Slashing Weapon 2 | . . . . 2 . . . . . . . . . . . . . . . . . . . . . . . Piercing Weapon . | . . . . . . . . . . . . . . . . . . . . . . . . . . . . Special Melee Weapon . | . . . . . . . . . . . . . . . . . . . . . . . . . . . . Unidentified Prototypes 41 | . . . . 4 . . . . 13 . . . . . . . . 2 . . . 2 . 12 6 2 . Corrupted Parts 4 | . . . . . 1 . . 3 . . . . . . . . . . . . . . . . . . . System Corruption 32 | . . . . . 11 . . 21 . . . . . . . . . . . . . . . . . . . Parts Lost 80 | . . . 4 9 1 . 4 . 13 . 1 . . . 3 3 1 . . . 10 2 . 2 9 14 4 Power 7 | . . . . . 1 . . . 2 . . . . . . . . . . . 2 . . . . 2 . Propulsion 17 | . . . 1 5 . . 3 . 3 . . . . . 1 1 . . . . 3 . . . . . . Utility 43 | . . . 1 3 . . 1 . 7 . . . . . 1 2 1 . . . 3 2 . 2 7 10 3 Weapon 13 | . . . 2 1 . . . . 1 . 1 . . . 1 . . . . . 2 . . . 2 2 1 Highest Loss Streak 8 | . . . 2 2 1 . 3 . 8 . 1 . . . 3 2 1 . . . 5 1 . 1 5 5 3 To Critical Strikes . | . . . . . . . . . . . . . . . . . . . . . . . . . . . . Average Slot Usage (%) 89 | . 98 100 99 99 99 99 99 98 85 83 84 79 80 80 74 85 82 83 89 94 81 54 85 86 85 87 64 Engine 5 | . 14 14 14 9 9 2 15 7 3 . . . . . . . . . . . . . . . . . . Core 1 | . . . . . 5 12 . 6 1 . . . . . . . . . . . . . . . . . . Reactor 3 | . . . . . . . . . 5 6 6 6 6 6 6 5 5 5 6 11 8 3 4 4 4 7 1 Treads 15 | . 26 28 28 34 30 30 29 29 14 . . . . . . . . . . . . . . . . . . Leg 10 | . 1 . . . . . . . 15 30 26 25 26 26 21 21 23 23 23 23 19 11 17 16 17 16 16 Device 11 | . . . . 11 15 15 15 15 11 15 13 8 9 6 6 21 7 5 5 5 20 17 29 31 24 25 21 Storage 10 | . 14 14 14 9 7 7 7 7 10 15 13 13 13 13 12 11 11 11 11 11 9 4 7 8 8 6 4 Protection 12 | . 13 14 14 15 15 14 14 15 7 . 8 10 6 6 6 11 20 24 29 29 14 6 17 14 11 6 4 Energy Gun 1 | . . . . 6 11 . 1 7 3 . . . . . . . . . . . . . . . . . . Energy Cannon 8 | . . . 19 1 3 14 13 . 9 15 13 12 13 13 12 10 11 11 11 11 8 4 4 4 7 7 4 Ballistic Gun 1 | . 13 14 1 1 . . . . . . . . . . . . . . . . . . . . . . . Ballistic Cannon 2 | . 13 13 5 8 . . . . . . . . . . . . . . . . . . . . . . . Naked Turns 47 | . . . . . . . . . . . . . . . . . . . . . 47 . . . . . . Heaviest Build 197 | 11 94 94 100 110 123 127 128 131 153 153 177 177 175 172 172 166 181 186 185 181 197 94 87 113 113 126 95 Greatest Support 146 | 20 40 40 40 80 68 68 88 88 104 104 100 100 100 100 100 120 120 100 100 100 120 120 120 146 146 144 144 Greatest Overweight (x) 10 | . 2 2 2 10 2 1 1 1 2 1 1 2 1 1 2 2 1 1 1 1 4 1 . . . . 1 Average Overweight (x) 1 | . 1 2 2 1 1 1 1 1 . 1 1 1 1 1 1 1 1 1 1 1 . . . . . . . Largest Inventory Capacity 25 | . 25 25 25 25 25 25 25 25 25 25 25 25 25 25 25 25 25 25 25 25 25 5 5 5 5 5 5 Average Capacity 21 | . 23 25 25 25 25 25 25 25 25 25 25 25 25 25 25 25 25 25 25 25 23 5 5 5 5 5 5 Most Carried 25 | . 19 19 25 25 25 25 25 25 25 25 25 25 25 25 25 25 25 25 25 25 25 5 5 5 5 5 5 Average Carried 20 | . 14 19 23 23 24 24 24 24 22 25 24 24 25 25 22 24 23 24 25 25 23 3 2 4 4 4 4 Final Capacity 25 | 8 25 25 25 25 25 25 25 25 25 25 25 25 25 25 25 25 25 25 25 25 5 5 5 5 5 5 5 Final Carried 25 | 6 19 19 24 25 25 25 25 25 25 25 25 25 25 25 23 24 25 25 25 25 5 2 5 5 5 4 4 Class Distribution -------------------- 33% | Golem 25% | Scavenger-Mutant 25% | Mutant 3% | Commander-Golem 3% | Hacker-Mutant 3% | Scavenger-Golem Dominant Class ---------------- Mutant | -10/Materials Mutant | -10/Mines Mutant | -10/Subcaves Scavenger-Mutant | -8/Materials Scavenger-Mutant | -7/Factory Scavenger-Mutant | -7/Lower Caves Scavenger-Mutant | -7/Lower Caves Scavenger-Mutant | -7/Zion Scavenger-Mutant | -7/Deep Caves Golem | -6/Proximity Caves Golem | -6/Factory Golem | -6/Lower Caves Golem | -6/Lower Caves Golem | -6/Data Miner Golem | -5/Proximity Caves Golem | -5/Factory Commander-Golem | -5/Extension Golem | -5/Cetus Scavenger-Golem | -5/Archives Scavenger-Golem | -5/Hub_04(d) Scavenger-Golem | -4/Factory Golem | -3/Research Golem | -2/Research Golem | -2/Quarantine Hacker-Golem | -2/Section 7 Hacker-Mutant | -1/Access Golem | -1/Command Resources | -11 -10 -10 -10 -8 -7 -7 -7 -7 -7 -6 -6 -6 -6 -6 -5 -5 -5 -5 -5 -5 -4 -3 -2 -2 -2 -1 -1 ----------- Run | Yrd Mat Min Sub Mat Fac Low Low Zio Dee Pro Fac Low Low Dat Pro Fac Ext Cet Arc Hub Fac Res Res Qua Sec Acc Com Matter Collected 5351 | 200 169 23 578 1240 212 211 182 172 874 41 80 40 19 . 5 147 160 60 40 . 110 93 8 114 374 199 . Remotely 719 | . . . . 719 . . . . . . . . . . . . . . . . . . . . . . . Salvage Created 22196 | . 271 32 461 1584 352 364 544 . 1791 644 625 563 . . 458 1542 714 345 258 699 1218 1727 86 3455 2249 2214 . Parts 916 | . 19 5 26 67 21 12 15 . 20 17 41 19 . . 18 69 41 18 14 36 50 91 4 67 114 132 . Haulers Intercepted 11 | . 2 . . 5 . . . . . . . . . . . 1 . . . . . 2 . 1 . . . Recyclers Shooed 11 | . . . . 4 1 . . . . . . . . . . . 2 . . 1 . 1 . 2 . . . Parts Field Recycled . | . . . . . . . . . . . . . . . . . . . . . . . . . . . . Retrieved Matter . | . . . . . . . . . . . . . . . . . . . . . . . . . . . . Parts Self-Destructed 79 | . . . 13 . . 8 13 5 . 15 . 7 . . 18 . . . . . . . . . . . . Prevented 5 | . . . . . . . 5 . . . . . . . . . . . . . . . . . . . . Kills | -11 -10 -10 -10 -8 -7 -7 -7 -7 -7 -6 -6 -6 -6 -6 -5 -5 -5 -5 -5 -5 -4 -3 -2 -2 -2 -1 -1 ------- Run | Yrd Mat Min Sub Mat Fac Low Low Zio Dee Pro Fac Low Low Dat Pro Fac Ext Cet Arc Hub Fac Res Res Qua Sec Acc Com Combat Hostiles Destroyed 366 | . 6 . 12 26 6 7 13 . 61 12 17 10 . . 14 18 8 6 3 10 18 20 1 30 31 37 . Melee 3 | . . . . . . . . . 3 . . . . . . . . . . . . . . . . . . Guns 13 | . 1 . 1 5 3 . . . 3 . . . . . . . . . . . . . . . . . . Cannons 229 | . 3 . 7 19 2 . 5 . 4 12 11 10 . . 14 18 8 6 3 6 17 14 . 2 31 37 . AOE 81 | . 2 . 2 1 . 6 8 . 42 . 6 . . . . . . . . 4 . 1 . 9 . . . Classes Destroyed 29 | . 4 1 2 5 3 . 2 . 4 2 1 1 . . . 1 . . . . 1 . . 2 . . . Worker 23 | . 4 1 . 3 . . . . . . 1 . . . . . . . . 3 . 1 . 4 2 4 . Builder 15 | . . . . 3 . . . . . . . . . . . 1 1 . . 1 . 5 . 1 . 3 . Tunneler 4 | . . 1 . 1 1 . . . . . . . . . . . . . . . . . . . . 1 . Hauler 11 | . 2 . . 5 . . . . . . . . . . . 1 . . . . . 2 . 1 . . . Recycler 17 | . . . . 4 1 . . . . . 1 . . . . 2 1 . . 2 2 . . 4 . . . Mechanic 1 | . . . . . . . 1 . . . . . . . . . . . . . . . . . . . . Operator 5 | . . . . . 1 . . . . . . . . . . 1 1 . . . 1 . . 1 . . . Drone 2 | . . . . . . . . . . 2 . . . . . . . . . . . . . . . . . Watcher 11 | . . . . 1 . . . . . . 1 . . . . . . 1 . . 2 . . 1 . 5 . Swarmer 86 | . 3 . . . 2 6 3 . . 1 12 4 . . 11 . . 1 . 8 5 2 . . 4 24 . Saboteur 1 | . . . . . . . . . . . . . . . . . . . . . 1 . . . . . . Grunt 89 | . 3 . . 19 . . 6 . . 4 . . . . 2 8 . 1 . . 9 6 . 15 10 6 . Brawler 8 | . . . . . 2 . 2 . . . . . . . . . . . . . 1 1 . 1 1 . . Duelist 7 | . . . . . . . 1 . . 2 . . . . . . . 1 . . 1 1 . . 1 . . Researcher 1 | . . . . . . . . . . . . . . . . . . . . . . . . 1 . . . Sentry 31 | . . . . 5 . . 1 . . 1 2 . . . 1 1 3 . 3 2 . 2 1 2 4 3 . Hunter 19 | . . . . 2 . 1 . . . 1 2 . . . . 2 3 1 . . . . . 3 4 . . Programmer 37 | . . . . . 2 . . . . 1 . . . . . 6 . . . . 1 8 . 8 7 4 . Heavy 1 | . . . . . . . . . . . . . . . . 1 . . . . . . . . . . . Behemoth 3 | . . . . . . . . . . . 1 . . . . . 2 . . . . . . . . . . Cetus Guard 2 | . . . . . . . . . . . . . . . . . . 2 . . . . . . . . . Enhanced Grunt 1 | . . . . . . . . . 1 . . . . . . . . . . . . . . . . . . Fortress 1 | . . . . . . . . . . . . . . . . . . . . . . . . 1 . . . Artisan 1 | . . . 1 . . . . . . . . . . . . . . . . . . . . . . . . Subdweller 12 | . . . 12 . . . . . . . . . . . . . . . . . . . . . . . . Z-Light 3 | . . . . . . . . . 3 . . . . . . . . . . . . . . . . . . Decomposer 1 | . . . . . . . . . . 1 . . . . . . . . . . . . . . . . . Packrat 3 | . . . . . . 3 . . . . . . . . . . . . . . . . . . . . . Samaritan 1 | . . . . . . . . . . 1 . . . . . . . . . . . . . . . . . Assembler 2 | . . . . . . . . . 2 . . . . . . . . . . . . . . . . . . Assembled 47 | . . . . . . . . . 47 . . . . . . . . . . . . . . . . . . Golem 11 | . . . . . . . . . 11 . . . . . . . . . . . . . . . . . . Thug 1 | . . . . . . . . . . . . 1 . . . . . . . . . . . . . . . Butcher 4 | . . . . . . . . . . . . 4 . . . . . . . . . . . . . . . Mutant 1 | . . . . . . . . . . . . 1 . . . . . . . . . . . . . . . Best Kill Streak 40 | . 8 2 2 7 3 3 7 . 40 7 9 6 . . 9 4 2 2 1 10 6 11 1 11 10 14 . Combat Bots Only 39 | . 5 . 2 5 3 3 7 . 39 7 8 6 . . 9 4 2 2 1 4 6 9 1 9 9 7 . Max Kills in Single Turn 12 | . 3 1 1 2 1 2 2 . 12 2 7 1 . . 2 1 2 1 1 8 2 3 1 3 2 2 . Gunslinging . | . . . . . . . . . . . . . . . . . . . . . . . . . . . . Exploded 12 | . 1 . 1 1 . 2 2 . 12 . 6 . . . . . . . . 4 . 1 . 2 . . . Melee 1 | . . . . . . . . . 1 . . . . . . . . . . . . . . . . . . Uniques/NPCs Destroyed 1 | . . . . . . . . . 1 . . . . . . . . . . . . . . . . . . Z-Imprinter (-7/Deep Caves) Combat | -11 -10 -10 -10 -8 -7 -7 -7 -7 -7 -6 -6 -6 -6 -6 -5 -5 -5 -5 -5 -5 -4 -3 -2 -2 -2 -1 -1 -------- Run | Yrd Mat Min Sub Mat Fac Low Low Zio Dee Pro Fac Low Low Dat Pro Fac Ext Cet Arc Hub Fac Res Res Qua Sec Acc Com Hostile Shots Fired 2370 | . 20 . 61 157 45 35 36 . 169 63 104 34 . . 125 98 43 12 5 60 383 88 3 100 343 326 60 Missed 873 | . 4 . 18 46 10 13 11 . 38 21 37 11 . . 31 39 17 5 1 18 154 37 2 44 153 143 20 Damage Taken 28779 | . 229 . 1085 1761 658 298 626 . 3468 544 813 269 . . 1541 1463 456 130 83 717 3634 940 23 1185 3344 4521 991 Core 3911 | . 36 . 158 115 15 12 51 . 442 24 84 . . . 112 82 73 35 . 33 894 35 . 95 388 960 267 Absorbed by Shields 1419 | . . . . . 100 88 96 . 96 . . . . . . . 106 35 . . 898 . . . . . . Redirected to Shielding 448 | . . . . . . . 82 . 151 . . . . . . 20 37 . . . . . 23 135 . . . Ignored by Resistances 4424 | . . . . 38 . . . . 107 . 172 61 . . . 281 116 34 18 149 587 199 5 246 1400 867 144 Regen/Repaired (Parts) 1545 | . 40 . . . . . . . . . . . . . . . . . . . . . . . 1505 . . Core Remaining (%) 56 | 100 . . 22 79 . . . . . 22 . . . . 76 . . . . 77 22 97 . . 48 . 22 Volleys Fired 1006 | . 21 2 72 121 26 15 23 . 72 25 35 19 . . 36 76 32 17 9 27 56 47 3 54 98 116 4 Largest 2 | . 2 1 2 2 2 2 2 . 2 2 2 2 . . 2 2 2 2 2 2 2 2 1 2 2 2 2 Hottest 300 | . 60 35 112 100 126 126 126 . 138 50 50 50 . . 50 50 50 50 50 50 100 250 250 250 50 50 300 Shots Fired 1776 | . 40 2 104 233 51 27 41 . 115 49 62 38 . . 69 141 62 34 18 54 100 88 3 55 182 201 7 Gun 173 | . 26 . 7 72 36 . . . 31 . . . . . . . . . . . 1 . . . . . . Cannon 1560 | . 12 1 85 161 15 22 36 . 66 49 62 38 . . 69 141 62 34 18 54 99 88 3 55 182 201 7 Launcher 43 | . 2 1 12 . . 5 5 . 18 . . . . . . . . . . . . . . . . . . Special . | . . . . . . . . . . . . . . . . . . . . . . . . . . . . Kinetic 254 | . 31 1 52 170 . . . . . . . . . . . . . . . . . . . . . . . Thermal 1246 | . . . . 19 21 . . . 43 49 62 38 . . 69 141 62 34 18 54 100 88 3 55 182 201 7 Explosive 38 | . 2 1 12 . . 5 5 . 13 . . . . . . . . . . . . . . . . . . Electromagnetic 238 | . 7 . 40 44 30 22 36 . 59 . . . . . . . . . . . . . . . . . . Robot Hit Streak 32 | . 5 3 17 9 8 6 7 . 16 18 22 7 . . 12 12 32 13 27 9 16 12 8 12 19 9 4 Robot Miss Streak 8 | . 3 . 2 8 2 2 3 . 4 4 2 2 . . 3 3 2 4 . 4 2 4 3 5 6 3 1 Penetration Max . | . . . . . . . . . . . . . . . . . . . . . . . . . . . . Secondary Targets 2 | . . . . 1 . . . . 1 . . . . . . . . . . . . . . . . . . Max Gunslinging Chain 1 | . . . . 1 . . . . 1 . . . . . . . . . . . . . . . . . . Shots Hit Robots 1076 | . 21 1 53 146 33 13 21 . 95 34 44 22 . . 27 81 42 22 14 25 65 61 3 32 128 88 5 Core Hits 787 | . 18 2 21 87 13 8 25 . 139 11 20 13 . . 14 29 16 13 5 21 37 48 1 125 57 63 1 Critical Kills 2 | . . . . . . . . . 2 . . . . . . . . . . . . . . . . . . Critical Parts Destroyed 5 | . . . . . . . . . 5 . . . . . . . . . . . . . . . . . . Critical Strikes 20 | . 1 . 1 7 . . 3 . 8 . . . . . . . . . . . . . . . . . . Burn 1 | . . . . . . . . . 1 . . . . . . . . . . . . . . . . . . Blast 8 | . 1 . . 7 . . . . . . . . . . . . . . . . . . . . . . . Corrupt 4 | . . . 1 . . . 3 . . . . . . . . . . . . . . . . . . . . Smash 7 | . . . . . . . . . 7 . . . . . . . . . . . . . . . . . . Melee Attacks 51 | . . . . 4 . . . 15 31 . . . . . . . . . . . . . . 1 . . . Kinetic 1 | . . . . . . . . . . . . . . . . . . . . . . . . 1 . . . Impact 46 | . . . . . . . . 15 31 . . . . . . . . . . . . . . . . . . Slashing 4 | . . . . 4 . . . . . . . . . . . . . . . . . . . . . . . Piercing . | . . . . . . . . . . . . . . . . . . . . . . . . . . . . Sneak Attacks 1 | . . . . 1 . . . . . . . . . . . . . . . . . . . . . . . Combat Hostiles . | . . . . . . . . . . . . . . . . . . . . . . . . . . . . Follow-up Attacks . | . . . . . . . . . . . . . . . . . . . . . . . . . . . . Damage Inflicted 54432 | . 584 64 1180 3313 894 714 1169 . 6932 1658 2804 1025 . . 1285 4087 2016 1281 664 1891 3399 3597 68 4367 6453 4674 313 Guns 1881 | . 129 . 37 763 455 . . . 474 . . . . . . . . . . . 23 . . . . . . Cannons 38440 | . 152 17 837 2159 237 309 524 . 989 1658 2080 1012 . . 1285 4035 1964 1281 664 1285 2880 2983 . 960 6425 4476 228 Explosions 11729 | . 254 40 303 231 175 395 645 . 3846 . 647 . . . . . . . . 601 443 607 68 3383 . 91 . Melee 1676 | . . . . 66 . . . . 1610 . . . . . . . . . . . . . . . . . . Ramming 706 | . 49 7 3 94 27 10 . . 13 . 77 13 . . . 52 52 . . 5 53 7 . 24 28 107 85 Kinetic 2597 | . 241 17 319 2020 . . . . . . . . . . . . . . . . . . . . . . . Thermal 39941 | . . . . 581 486 62 228 . 640 1658 2727 1012 . . 1285 4035 1964 1281 664 1285 2903 3590 68 4343 6425 4476 228 Explosive 5361 | . 254 40 303 . . 333 417 . 3480 . . . . . . . . . . . 443 . . . . 91 . Electromagnetic 4151 | . 40 . 555 552 381 309 524 . 1189 . . . . . . . . . . 601 . . . . . . . Impact 1610 | . . . . . . . . . 1610 . . . . . . . . . . . . . . . . . . Slashing 66 | . . . . 66 . . . . . . . . . . . . . . . . . . . . . . . Piercing . | . . . . . . . . . . . . . . . . . . . . . . . . . . . . Highest Corruption 21 | . . . . . 17 17 17 21 5 6 . . . . . 2 . . . 2 2 5 . 3 8 2 3 Average Corruption 7 | . . . . . 15 17 17 17 5 5 . . . . . 1 . . . 2 1 3 . 2 5 1 2 Corruption Purged 2 | . . . . . . . . . . . . . . . . 2 . . . . . . . . . . . Corruption Blocked . | . . . . . . . . . . . . . . . . . . . . . . . . . . . . Effects 246 | . . . . . 29 34 38 6 45 24 . . . . . 10 . . . . . 10 . 9 30 7 4 Message Errors 61 | . . . . . 5 12 12 . 7 6 . . . . . 3 . . . . . 2 . 1 8 2 3 Matter Fused 62 | . . . . . 8 7 9 3 13 4 . . . . . 3 . . . . . 2 . 3 8 2 . Heat Flow Errors 34 | . . . . . 5 5 3 2 8 4 . . . . . 1 . . . . . 3 . 1 2 . . Energy Discharges 23 | . . . . . 4 1 4 . 3 5 . . . . . 1 . . . . . . . 2 2 1 . Parts Rejected 2 | . . . . . 1 . . . . . . . . . . 1 . . . . . . . . . . . Parts Fused 2 | . . . . . . 1 . . . . . . . . . . . . . . . . . . 1 . . Data Loss (minor) 26 | . . . . . 4 2 4 1 7 2 . . . . . . . . . . . 1 . 1 2 1 1 Data Loss (major) 9 | . . . . . 1 1 1 . 3 1 . . . . . 1 . . . . . . . . 1 . . Misfires 10 | . . . . . . 3 2 . 4 . . . . . . . . . . . . . . . 1 . . Alerts 6 | . . . . . . 1 1 . . 1 . . . . . . . . . . . . . 1 2 . . Weapon Failures 11 | . . . . . 1 1 2 . . 1 . . . . . . . . . . . 2 . . 3 1 . Overload Shots . | . . . . . . . . . . . . . . . . . . . . . . . . . . . . Overflow Damage 2171 | . 25 . . 50 3 81 10 . 494 268 100 41 . . 108 267 40 2 11 48 106 10 . 20 293 194 . Projectiles 1486 | . . . . 31 3 48 . . 11 268 28 33 . . 108 255 40 2 11 48 101 10 . 2 293 194 . Explosions 348 | . 25 . . 12 . 33 10 . 189 . 56 . . . . . . . . . 5 . . 18 . . . Melee 337 | . . . . 7 . . . . 294 . 16 8 . . . 12 . . . . . . . . . . . Knockbacks 41 | . . 1 3 18 . . . . 16 . 1 . . . . 1 1 . . . . . . . . . . Impact 19 | . . 1 . . . . . . 15 . 1 . . . . 1 1 . . . . . . . . . . Kinetic 18 | . . . 3 15 . . . . . . . . . . . . . . . . . . . . . . . Secondary 4 | . . . . 3 . . . . 1 . . . . . . . . . . . . . . . . . . Self-Inflicted Damage 750 | . 4 . 31 78 105 56 169 . 97 . . . . . . . . . . 83 51 . . 71 . . 5 Shots 28 | . 1 . 1 2 2 1 4 . 2 . . . . . . . . . . 1 . . . 14 . . . Rammed 25 | . 9 1 1 7 2 1 . . . . . . . . . . . . . . 1 . . . . . 3 Targets Rammed 74 | . 10 1 1 11 3 1 . . 2 . 3 1 . . . 2 6 . . 1 1 1 . 3 3 6 18 Kicked 44 | . 1 . . . . . . . 2 . 3 1 . . . 2 6 . . 1 . 1 . 3 3 6 15 Crushed 5 | . . . . 4 1 . . . . . . . . . . . . . . . . . . . . . . Highest Temperature 359 | . 139 . 33 255 269 224 312 266 359 207 . 6 . . 83 177 . . 1 57 231 145 229 134 149 . 156 Average Temperature 71 | . 41 . 12 41 94 72 107 119 104 90 . 4 . . 43 100 . . 1 22 62 76 126 34 60 . 83 Received Heat Transfer 4534 | . 87 . 195 756 50 . 68 . 410 105 108 9 . . 252 231 67 18 18 63 857 151 . 180 378 414 117 Effects 5 | . . . . . . . . . 4 . . . . . . . . . . . 1 . . . . . . Energy Bleed 1 | . . . . . . . . . 1 . . . . . . . . . . . . . . . . . . Interference 4 | . . . . . . . . . 3 . . . . . . . . . . . 1 . . . . . . Siege Activations . | . . . . . . . . . . . . . . . . . . . . . . . . . . . . Robots Corrupted 13 | . . . 2 1 1 1 . . 8 . . . . . . . . . . . . . . . . . . Combat Hostiles 13 | . . . 2 1 1 1 . . 8 . . . . . . . . . . . . . . . . . . Parts Fried 20 | . . . 5 6 2 . 3 . 2 . 1 . . . . . . . . 1 . . . . . . . Impact Corruptions 12 | . . . . 2 . . . . 6 . 1 2 . . . 1 . . . . . . . . . . . Robots Melted 28 | . . . . . . . . . . . . . . . . . . . . . 1 5 1 21 . . . Combat Hostiles 25 | . . . . . . . . . . . . . . . . . . . . . 1 5 1 18 . . . Parts Melted 151 | . . . 1 1 1 . 2 . 2 2 2 . . . 2 3 4 . . . . 22 3 104 2 . . Heat Transferred 45981 | . . . . 718 594 50 250 . 798 875 1575 550 . . 725 2125 1100 661 375 725 1650 5070 400 21865 3350 2400 125 Parts Sabotaged 1 | . . . . . . . . . . . . . . . . . . . . . . . . 1 . . . Parts Stolen . | . . . . . . . . . . . . . . . . . . . . . . . . . . . . Parts Stripped 18 | . . . . . . . . . . . . . . . . . . . . . . . . 18 . . . Power Chain Reactions 10 | . . . . 3 3 1 2 . 1 . . . . . . . . . . . . . . . . . . Alert | -11 -10 -10 -10 -8 -7 -7 -7 -7 -7 -6 -6 -6 -6 -6 -5 -5 -5 -5 -5 -5 -4 -3 -2 -2 -2 -1 -1 ------- Run | Yrd Mat Min Sub Mat Fac Low Low Zio Dee Pro Fac Low Low Dat Pro Fac Ext Cet Arc Hub Fac Res Res Qua Sec Acc Com Peak Influence 1548 | . 150 12 . 558 222 . . . . . 1058 . . . . 305 371 831 314 907 861 838 516 754 898 1548 1081 Initial 932 | . . . . . 141 . . . . . 600 . . . . 18 149 124 252 109 443 438 471 290 228 458 932 Average 375 | . 24 1 . 250 96 . . . . . 816 . . . . 130 160 482 298 245 640 385 478 514 553 1047 959 Maximum Alert Level 4 | . . . . 2 1 . . . . . 3 . . . . 1 1 3 1 3 3 3 2 3 3 4 3 Low Security (%) 38 | . 100 100 . 40 90 . . . . . . . . . . 76 60 10 . 23 . . . . . . . Level 1 21 | . . . . 44 9 . . . . . . . . . . 23 39 26 100 75 . 47 . 8 27 . . Level 2 22 | . . . . 15 . . . . . . 31 . . . . . . 59 . . 70 47 100 89 43 21 . Level 3 12 | . . . . . . . . . . . 68 . . . . . . 3 . 1 29 4 . 2 29 33 100 Level 4 3 | . . . . . . . . . . . . . . . . . . . . . . . . . . 45 . Level 5 . | . . . . . . . . . . . . . . . . . . . . . . . . . . . . High Security . | . . . . . . . . . . . . . . . . . . . . . . . . . . . . Max Security . | . . . . . . . . . . . . . . . . . . . . . . . . . . . . Squads Dispatched 66 | . 1 . . 6 2 . 1 . . . 1 . . . . 7 . . . . 8 9 . 10 6 11 4 Investigation 4 | . . . . 1 . . . . . . . . . . . 1 . . . . 1 . . . . . 1 Extermination 17 | . . . . . 2 . . . . . . . . . . 3 . . . . 2 3 . 2 2 2 1 Reinforcement 21 | . 1 . . 3 . . . . . . . . . . . 3 . . . . 2 . . 4 3 3 2 Assault 18 | . . . . 1 . . 1 . . . 1 . . . . . . . . . 3 4 . 1 1 6 . Garrison 6 | . . . . 1 . . . . . . . . . . . . . . . . . 2 . 3 . . . Intercept . | . . . . . . . . . . . . . . . . . . . . . . . . . . . . Searches Triggered 1 | . . . . . . . . . . . 1 . . . . . . . . . . . . . . . . Construction Impeded 5 | . . . . 2 . . . . . . . . . . . . . . . . . . . 1 1 1 . Haulers Reinforced 2 | . . . . . . . . . . . . . . . . . . . . . . . . 1 . 1 . Active Scanning Responses . | . . . . . . . . . . . . . . . . . . . . . . . . . . . . Cargo Convoy Interrupts 1 | . . . . . . . . . . . . . . . . 1 . . . . . . . . . . . Stealth | -11 -10 -10 -10 -8 -7 -7 -7 -7 -7 -6 -6 -6 -6 -6 -5 -5 -5 -5 -5 -5 -4 -3 -2 -2 -2 -1 -1 --------- Run | Yrd Mat Min Sub Mat Fac Low Low Zio Dee Pro Fac Low Low Dat Pro Fac Ext Cet Arc Hub Fac Res Res Qua Sec Acc Com Distress Signals 25 | . 1 . . 4 . . . . . . 1 . . . . 2 1 2 . 1 1 . . 4 3 3 2 Communications Jammed 4 | . . . . . . . . . . . . . . . . . . . . . . . . . 4 . . Distress Signals 4 | . . . . . . . . . . . . . . . . . . . . . . . . . 4 . . Times Spotted 610 | . 19 . 12 57 12 8 16 . 64 14 12 10 . . 14 26 17 19 3 9 48 24 1 37 51 115 22 Peak Tracking Total 38 | . 4 . 2 8 5 4 8 . 38 7 6 4 . . 6 6 3 5 1 5 11 9 1 8 11 9 7 Tactical Retreats 42 | . . . . 10 4 1 1 . 7 . . . . . . 1 . . . . 8 . . 1 4 5 . Traps | -11 -10 -10 -10 -8 -7 -7 -7 -7 -7 -6 -6 -6 -6 -6 -5 -5 -5 -5 -5 -5 -4 -3 -2 -2 -2 -1 -1 ------- Run | Yrd Mat Min Sub Mat Fac Low Low Zio Dee Pro Fac Low Low Dat Pro Fac Ext Cet Arc Hub Fac Res Res Qua Sec Acc Com Traps Triggered 18 | . 2 . 3 . 1 . . . . . 1 . . . . 1 5 . . . 1 . . 1 1 . 2 Indirectly . | . . . . . . . . . . . . . . . . . . . . . . . . . . . . Trap Hack Attempts . | . . . . . . . . . . . . . . . . . . . . . . . . . . . . Triggered . | . . . . . . . . . . . . . . . . . . . . . . . . . . . . Disarmed . | . . . . . . . . . . . . . . . . . . . . . . . . . . . . Reprogrammed . | . . . . . . . . . . . . . . . . . . . . . . . . . . . . Reused 1 | . . . 1 . . . . . . . . . . . . . . . . . . . . . . . . Traps Extracted . | . . . . . . . . . . . . . . . . . . . . . . . . . . . . Installed 1 | . . . 1 . . . . . . . . . . . . . . . . . . . . . . . . Triggered 2 | . . . . . . . . . . . . . . . . 2 . . . . . . . . . . . Most Traps Carried 2 | . . . 2 1 . . . . . . . . . . . . . . . . . . . . . . . Machines | -11 -10 -10 -10 -8 -7 -7 -7 -7 -7 -6 -6 -6 -6 -6 -5 -5 -5 -5 -5 -5 -4 -3 -2 -2 -2 -1 -1 ---------- Run | Yrd Mat Min Sub Mat Fac Low Low Zio Dee Pro Fac Low Low Dat Pro Fac Ext Cet Arc Hub Fac Res Res Qua Sec Acc Com Machines Disabled 72 | . . . . 3 1 . 1 . 3 . 14 . . . . 1 4 4 . 14 4 3 . 4 10 5 1 Max in Single Turn 14 | . . . . 1 1 . 1 . 1 . 12 . . . . 1 1 1 . 14 4 1 . 1 1 1 1 Garrison Access 3 | . . . . 1 . . . . . . 1 . . . . . . . . . . 1 . . . . . Network Hub 1 | . . . . . . . . . . . . . . . . . . . . 1 . . . . . . . Machines Repaired . | . . . . . . . . . . . . . . . . . . . . . . . . . . . . Machines Dismantled . | . . . . . . . . . . . . . . . . . . . . . . . . . . . . Machines Sabotaged . | . . . . . . . . . . . . . . . . . . . . . . . . . . . . Overloaded Fab Kills . | . . . . . . . . . . . . . . . . . . . . . . . . . . . . Hacking | -11 -10 -10 -10 -8 -7 -7 -7 -7 -7 -6 -6 -6 -6 -6 -5 -5 -5 -5 -5 -5 -4 -3 -2 -2 -2 -1 -1 --------- Run | Yrd Mat Min Sub Mat Fac Low Low Zio Dee Pro Fac Low Low Dat Pro Fac Ext Cet Arc Hub Fac Res Res Qua Sec Acc Com Machines Accessed 45 | . 5 . 1 5 3 . . 1 . . 3 . 1 4 . . 1 . . . 2 . . 6 6 5 2 Terminals 32 | . 4 . . 4 2 . . . . . 2 . . . . . 1 . . . 1 . . 5 6 5 2 Fabricators 1 | . . . . . . . . . . . . . . . . . . . . . 1 . . . . . . Repair Stations 2 | . 1 . . . 1 . . . . . . . . . . . . . . . . . . . . . . Recycling Units . | . . . . . . . . . . . . . . . . . . . . . . . . . . . . Scanalyzers 1 | . . . . 1 . . . . . . . . . . . . . . . . . . . . . . . Garrison Access 2 | . . . . . . . . . . . 1 . . . . . . . . . . . . 1 . . . Total Hacks 156 | . 14 . 2 12 7 . . 7 . . 6 . 1 28 . . 2 . . . 7 . . 18 26 22 4 Successful 72 | . 7 . 2 4 2 . . 7 . . 2 . 1 28 . . . . . . 1 . . 7 7 3 1 Failed 83 | . 6 . . 8 5 . . . . . 4 . . . . . 2 . . . 6 . . 11 19 19 3 Catastrophic 29 | . 2 . . 3 1 . . . . . 2 . . . . . . . . . 3 . . 5 7 6 . Database Lockouts 1 | . 1 . . . . . . . . . . . . . . . . . . . . . . . . . . Manual 77 | . 10 . . 4 5 . . 1 . . 4 . . . . . 2 1 . . 6 . . 16 20 8 . Terminals 107 | . 12 . . 9 5 . . . . . 5 . . . . . 2 . . . 6 . . 16 26 22 4 Fabricators 1 | . . . . . . . . . . . . . . . . . . . . . 1 . . . . . . Repair Stations 4 | . 2 . . . 2 . . . . . . . . . . . . . . . . . . . . . . Recycling Units . | . . . . . . . . . . . . . . . . . . . . . . . . . . . . Scanalyzers 3 | . . . . 3 . . . . . . . . . . . . . . . . . . . . . . . Garrison Access 3 | . . . . . . . . . . . 1 . . . . . . . . . . . . 2 . . . Terminal Hacks 60 | . 4 . 2 2 1 . . 7 . . 1 . 1 28 . . . . . . 1 . . 4 5 3 1 Record 13 | . . . 2 . . . . . . . . . . 11 . . . . . . . . . . . . . Part Schematic 15 | . . . . . . . . 7 . . . . . 8 . . . . . . . . . . . . . Robot Schematic 6 | . . . . . . . . . . . . . . 6 . . . . . . . . . . . . . Robot Analysis 2 | . 2 . . . . . . . . . . . . . . . . . . . . . . . . . . Prototype ID Bank 3 | . . . . . . . . . . . . . . 3 . . . . . . . . . . . . . Open Door 1 | . . . . . . . . . . . . . 1 . . . . . . . . . . . . . . Level Access Points 2 | . . . . . . . . . . . . . . . . . . . . . . . . . 1 . 1 Branch Access Points 3 | . . . . . 1 . . . . . 1 . . . . . . . . . 1 . . . . . . Machine Index 1 | . . . . . . . . . . . . . . . . . . . . . . . . . . 1 . Terminal Index 2 | . . . . . . . . . . . . . . . . . . . . . . . . 1 1 . . Alert Level 1 | . . . . . . . . . . . . . . . . . . . . . . . . . 1 . . Unreport Threat 7 | . . . . 2 . . . . . . . . . . . . . . . . . . . 3 2 . . Locate Traps 1 | . 1 . . . . . . . . . . . . . . . . . . . . . . . . . . Recall Extermination 1 | . . . . . . . . . . . . . . . . . . . . . . . . . . 1 . Recall Assault 1 | . . . . . . . . . . . . . . . . . . . . . . . . . . 1 . Hauler Manifests 1 | . 1 . . . . . . . . . . . . . . . . . . . . . . . . . . Fabricator Hacks . | . . . . . . . . . . . . . . . . . . . . . . . . . . . . Repair Station Hacks 3 | . 2 . . . 1 . . . . . . . . . . . . . . . . . . . . . . Scan Component 2 | . 1 . . . 1 . . . . . . . . . . . . . . . . . . . . . . Repair 1 | . 1 . . . . . . . . . . . . . . . . . . . . . . . . . . Recycling Unit Hacks . | . . . . . . . . . . . . . . . . . . . . . . . . . . . . Scanalyzer 2 | . . . . 2 . . . . . . . . . . . . . . . . . . . . . . . Insert Component 1 | . . . . 1 . . . . . . . . . . . . . . . . . . . . . . . Analyze 1 | . . . . 1 . . . . . . . . . . . . . . . . . . . . . . . Garrison Access Hacks 1 | . . . . . . . . . . . 1 . . . . . . . . . . . . . . . . Seal Access 1 | . . . . . . . . . . . 1 . . . . . . . . . . . . . . . . Unauthorized Hacks 6 | . 1 . . . . . . . . . . . . . . . . . . . . . . 3 2 . . Terminals 6 | . 1 . . . . . . . . . . . . . . . . . . . . . . 3 2 . . Botnet 6 | . 1 . . . . . . . . . . . . . . . . . . . . . . 3 2 . . Fabricators . | . . . . . . . . . . . . . . . . . . . . . . . . . . . . Repair Stations . | . . . . . . . . . . . . . . . . . . . . . . . . . . . . Recycling Units . | . . . . . . . . . . . . . . . . . . . . . . . . . . . . Scanalyzers . | . . . . . . . . . . . . . . . . . . . . . . . . . . . . Garrison Access . | . . . . . . . . . . . . . . . . . . . . . . . . . . . . Data Cores Recovered 4 | . . . . . . . . . . . . . . . . 1 1 . . . 1 . . 1 . . . Used 1 | . . . . . . . . . . . . . . . . . 1 . . . . . . . . . . Hacking Detections 35 | . 5 . . 5 3 . . . . . 2 . . . . . . . . . 2 . . 6 6 5 1 Full Trace Events 2 | . . . . 1 . . . . . . . . . . . . . . . . 1 . . . . . . Feedback Events . | . . . . . . . . . . . . . . . . . . . . . . . . . . . . Feedback Blocked . | . . . . . . . . . . . . . . . . . . . . . . . . . . . . Robot Schematics Acquired 10 | . . . . . . . . 4 . . . . . 6 . . . . . . . . . . . . . Robots Built . | . . . . . . . . . . . . . . . . . . . . . . . . . . . . Authchips . | . . . . . . . . . . . . . . . . . . . . . . . . . . . . Time . | . . . . . . . . . . . . . . . . . . . . . . . . . . . . Total Robot Build Rating . | . . . . . . . . . . . . . . . . . . . . . . . . . . . . Part Schematics Acquired 29 | . . . . 1 . . . 20 . . . . . 8 . . . . . . . . . . . . . Parts Built . | . . . . . . . . . . . . . . . . . . . . . . . . . . . . Authchips . | . . . . . . . . . . . . . . . . . . . . . . . . . . . . Time . | . . . . . . . . . . . . . . . . . . . . . . . . . . . . Total Part Build Rating . | . . . . . . . . . . . . . . . . . . . . . . . . . . . . Parts Repaired 1 | . 1 . . . . . . . . . . . . . . . . . . . . . . . . . . Time 26 | . 26 . . . . . . . . . . . . . . . . . . . . . . . . . . Parts Recycled . | . . . . . . . . . . . . . . . . . . . . . . . . . . . . Recycled Matter . | . . . . . . . . . . . . . . . . . . . . . . . . . . . . Retrieved Matter . | . . . . . . . . . . . . . . . . . . . . . . . . . . . . Retrieved Components . | . . . . . . . . . . . . . . . . . . . . . . . . . . . . Parts Scanalyzed 1 | . . . . 1 . . . . . . . . . . . . . . . . . . . . . . . Part Schematics Acquired 1 | . . . . 1 . . . . . . . . . . . . . . . . . . . . . . . Parts Damaged 1 | . . . . 1 . . . . . . . . . . . . . . . . . . . . . . . Bothacking | -11 -10 -10 -10 -8 -7 -7 -7 -7 -7 -6 -6 -6 -6 -6 -5 -5 -5 -5 -5 -5 -4 -3 -2 -2 -2 -1 -1 ------------ Run | Yrd Mat Min Sub Mat Fac Low Low Zio Dee Pro Fac Low Low Dat Pro Fac Ext Cet Arc Hub Fac Res Res Qua Sec Acc Com Used RIF Installer . | . . . . . . . . . . . . . . . . . . . . . . . . . . . . Robots Hacked . | . . . . . . . . . . . . . . . . . . . . . . . . . . . . Non-combat . | . . . . . . . . . . . . . . . . . . . . . . . . . . . . Combat . | . . . . . . . . . . . . . . . . . . . . . . . . . . . . Robot Hacks Applied . | . . . . . . . . . . . . . . . . . . . . . . . . . . . . Relay Couplers Released 7 | . . . . 2 . . . . . . 2 . . . . . . . . . . 3 . . . . . Machine Destruction 7 | . . . . 2 . . . . . . 2 . . . . . . . . . . 3 . . . . . Fabnet Peak Effective % . | . . . . . . . . . . . . . . . . . . . . . . . . . . . . Robots Rewired 9 | . . . . . . . 2 . . . . . . . . . 7 . . . . . . . . . . Allies Hacked . | . . . . . . . . . . . . . . . . . . . . . . . . . . . . Hacks Repelled . | . . . . . . . . . . . . . . . . . . . . . . . . . . . . Allies | -11 -10 -10 -10 -8 -7 -7 -7 -7 -7 -6 -6 -6 -6 -6 -5 -5 -5 -5 -5 -5 -4 -3 -2 -2 -2 -1 -1 -------- Run | Yrd Mat Min Sub Mat Fac Low Low Zio Dee Pro Fac Low Low Dat Pro Fac Ext Cet Arc Hub Fac Res Res Qua Sec Acc Com Total Allies 24 | . . . . . . . 2 2 . . . . . . . . 19 1 . . . . . . . . . Largest Group 18 | . . . . . . . 2 3 3 . . . . . . . 18 16 3 . . . . . . . . Highest-Rated Group 606 | . . . . . . . 52 224 224 . . . . . . . 606 555 150 . . . . . . . . Highest-Rated Ally 159 | . . . . . . . 32 96 96 . . . . . . . 159 159 96 . . . . . . . . Total Orders 9 | . . . . . . . . . . . . . . . . 6 3 . . . . . . . . . . RETURN 9 | . . . . . . . . . . . . . . . . 6 3 . . . . . . . . . . Ally Attacks 250 | . . . . . . . 11 . 60 . . . . . . . 87 85 7 . . . . . . . . Total Damage 6458 | . . . . . . . 352 . 1459 . . . . . . . 2004 2466 177 . . . . . . . . Kills 48 | . . . . . . . 2 . 13 . . . . . . . 13 19 1 . . . . . . . . Allies Corrupted 1 | . . . . . . . . . . . . . . . . . 1 . . . . . . . . . . Allies Melted . | . . . . . . . . . . . . . . . . . . . . . . . . . . . . Intel | -11 -10 -10 -10 -8 -7 -7 -7 -7 -7 -6 -6 -6 -6 -6 -5 -5 -5 -5 -5 -5 -4 -3 -2 -2 -2 -1 -1 ------- Run | Yrd Mat Min Sub Mat Fac Low Low Zio Dee Pro Fac Low Low Dat Pro Fac Ext Cet Arc Hub Fac Res Res Qua Sec Acc Com Robot Analysis Total 2 | . 2 . . . . . . . . . . . . . . . . . . . . . . . . . . Derelict Logs Recovered 8 | . . . 1 . . 1 . 1 . 1 . 2 2 . . . . . . . . . . . . . . Drone Launches 9 | . . . . . . . . . . . . . . . . 6 3 . . . . . . . . . . Drone Recoveries 9 | . . . . . . . . . . . . . . . . 6 3 . . . . . . . . . . Exploration | -11 -10 -10 -10 -8 -7 -7 -7 -7 -7 -6 -6 -6 -6 -6 -5 -5 -5 -5 -5 -5 -4 -3 -2 -2 -2 -1 -1 ------------- Run | Yrd Mat Min Sub Mat Fac Low Low Zio Dee Pro Fac Low Low Dat Pro Fac Ext Cet Arc Hub Fac Res Res Qua Sec Acc Com Turns Passed 33489 | . 2141 279 4584 2550 973 781 930 2873 4059 903 706 887 668 147 1044 1085 2016 443 151 240 1034 1116 195 833 962 1442 447 Spaces Moved 12644 | 1 691 83 1277 809 303 302 350 1161 1341 252 311 254 341 80 235 375 904 186 57 76 448 196 115 532 591 1073 300 Core 318 | . . . . . . . . . . . . . . . . . . . . . 90 . . . . . 228 Treads 5481 | . 638 83 1277 727 303 302 350 1161 640 . . . . . . . . . . . . . . . . . . Legs 6668 | 1 53 . . . . . . . 701 252 311 254 341 80 235 375 904 186 57 76 322 191 115 532 587 1029 66 Wheels 82 | . . . . 82 . . . . . . . . . . . . . . . . . . . . . . . Hover . | . . . . . . . . . . . . . . . . . . . . . . . . . . . . Flight 41 | . . . . . . . . . . . . . . . . . . . . . 36 5 . . . . . Fastest Speed 40 | 120 120 320 320 230 240 240 240 240 120 189 185 185 185 185 185 183 185 185 185 185 40 40 135 93 100 95 50 Average Speed 205 | 120 287 320 333 249 283 240 240 240 211 189 185 187 185 185 217 184 185 185 185 185 157 149 135 109 102 98 64 Slowest Speed 560 | 120 320 320 340 560 320 240 240 240 320 192 189 242 185 185 226 226 186 185 185 185 270 186 135 135 105 100 122 Overloaded Moves . | . . . . . . . . . . . . . . . . . . . . . . . . . . . . Propulsion Burnouts . | . . . . . . . . . . . . . . . . . . . . . . . . . . . . Robots Hopped 3 | . . . . . . . . . . . . . . . . . . . . . 3 . . . . . . Cave-ins Triggered 2 | . . . . . . . . . . . . . . . . . . . . . . . . . . 2 . Teleports 59 | . . . . . . . . . . . . . . . . . . . . . . . . . . 43 16 Spacefolds 18 | . . . . . . . . . . . . . . . . . . . . . . . . . 1 15 2 Exploration Rate (%) 42 | 2 74 16 49 61 12 53 48 84 84 41 12 50 54 69 37 17 96 56 65 13 20 8 4 68 37 43 16 Regions Visited 27 Branch Regions 18 Pre-discovered Areas 6 | . . . 1 . . . . 3 . . . . 1 1 . . . . . . . . . . . . . Known Exits Taken 6 | . . . . . 1 . . . . . 1 . . . . 1 1 . . 1 . . . . 1 . . Unknown Exits Taken 21 | 1 1 1 1 1 . 1 1 1 1 1 . 1 1 1 1 . . 1 1 . 1 1 1 1 . 1 . Scrap Searched 25 | . . . 9 . . 4 1 5 . . . 1 3 . 2 . . . . . . . . . . . . Spaces Dug 85 | . . . 5 2 . . . 3 . . 2 . . . 10 9 6 . 2 4 4 . . 1 4 33 . Terrain Destroyed 723 | . 8 3 83 36 11 34 42 3 4 14 24 15 . . 40 47 13 2 3 171 39 15 . 3 31 82 . Melee 5 | . . . . 2 . . . 3 . . . . . . . . . . . . . . . . . . . Projectile 365 | . . . 8 22 2 . . . 4 14 9 15 . . 40 47 13 2 3 24 31 15 . 3 31 82 . AOE 352 | . 8 3 75 12 9 34 42 . . . 15 . . . . . . . . 147 7 . . . . . . Terrain Rammed 1 | . . . . . . . . . . . . . . . . . . . . . 1 . . . . . . Walls Destroyed 1 | . . . . . . . . . . . . . . . . . . . . . 1 . . . . . . Machines Disabled . | . . . . . . . . . . . . . . . . . . . . . . . . . . . . Actions | -11 -10 -10 -10 -8 -7 -7 -7 -7 -7 -6 -6 -6 -6 -6 -5 -5 -5 -5 -5 -5 -4 -3 -2 -2 -2 -1 -1 --------- Run | Yrd Mat Min Sub Mat Fac Low Low Zio Dee Pro Fac Low Low Dat Pro Fac Ext Cet Arc Hub Fac Res Res Qua Sec Acc Com Total 18327 | . 792 93 1486 1104 364 333 400 1227 2404 630 378 630 379 79 703 629 1179 254 84 121 679 929 153 735 757 1256 549 Wait 3568 | . 36 6 94 22 1 1 5 8 805 348 5 338 34 . 426 122 60 31 16 18 134 667 32 84 29 39 207 Move 12574 | . 690 82 1276 808 302 301 349 1160 1340 251 310 253 340 79 234 374 903 185 56 75 442 195 114 531 587 1042 295 Hop 2 | . . . . . . . . . . . . . . . . . . . . . 2 . . . . . . Pick Up 173 | . 19 . 11 41 7 3 5 10 35 . 1 3 . . 1 4 3 5 . . 6 2 2 4 3 6 2 Fast Attach 103 | . 3 . . 9 1 1 2 4 19 1 4 3 2 . . 9 1 3 2 . 7 4 . 13 6 9 . Attach 61 | . 3 . 4 11 3 . 3 2 13 . . . . . 1 3 1 1 . . 2 2 . 3 1 4 4 Detach 30 | . . . . 1 . . . . 2 . . . . . . 6 . . . . 1 . . 5 6 6 3 Swap 186 | . 3 2 22 30 11 6 3 11 29 . 4 1 . . . 8 8 4 . . 4 3 . 7 16 13 1 Drop 321 | . 7 . 5 46 10 5 4 17 56 5 11 12 3 . 5 20 7 8 1 . 23 8 2 30 8 14 14 Fire 1006 | . 21 2 72 121 26 15 23 . 72 25 35 19 . . 36 76 32 17 9 27 56 47 3 54 98 116 4 Melee 51 | . . . . 4 . . . 15 31 . . . . . . . . . . . . . . 1 . . . Ram 6 | . . . . 1 . . . . . . . . . . . . . . . . 2 . . . . . 3 Kick 44 | . 1 . . . . . . . 2 . 3 1 . . . 2 6 . . 1 . 1 . 3 3 6 15 Crush 25 | . 9 1 1 10 3 1 . . . . . . . . . . . . . . . . . . . . . Escape Stasis 38 | . . . . . . . . . . . 5 . . . . 5 26 . . . . . . . . 1 1 Rewire 138 | . . . . . . . 6 . . . . . . . . . 132 . . . . . . . . . . Trap 1 | . . . 1 . . . . . . . . . . . . . . . . . . . . . . . . Miscellaneous . | . . . . . . . . . . . . . . . . . . . . . . . . . . . . Route ------- -11/Scrapyard -10/Materials (discovered 4 exits: [*Mat x2] / [*Min] / *Sub) -10/Mines -10/Subcaves -8/Materials (discovered 2 exits: *Fac / [*Sto]) -7/Factory (discovered 2 exits: *Low x2) -7/Lower Caves -7/Lower Caves -7/Zion -7/Deep Caves -6/Proximity Caves -6/Factory (discovered 3 exits: [*Fac] / *Low x2) -6/Lower Caves -6/Lower Caves (discovered 2 exits: [*Fac] / *Dat) -6/Data Miner -5/Proximity Caves -5/Factory (discovered 8 exits: Fac x4 / Upp x2 / *Ext x2) -5/Extension (discovered 3 exits: *Fac x2 / *Cet) -5/Cetus (discovered 2 exits: *Fac / [*Arc]) -5/Archives -5/Hub_04(d) -4/Factory (discovered 4 exits: [*Res] / Upp x2 / Arm) -3/Research -2/Research -2/Quarantine (discovered 2 exits: *Acc / *Sec) -2/Section 7 -1/Access -1/Command (discovered 2 exits: *Sur x2) To Epsilon Eridani History --------- Turn | Location | Event 1 | -11/Scrapyard | Discovered new exit (range 0) 1 | -11/Scrapyard | Entered Materials 36 | -10/Materials | Discovered new exit (range 6) 128 | -10/Materials | Discovered new exit (range 4) 317 | -10/Materials | Build established: Mutant 1031 | -10/Materials | Discovered new exit (range 10) 1451 | -10/Materials | Discovered new exit (range 4) 1672 | -10/Materials | Repaired Lgt. Cannon 2043 | -10/Materials | Central database locked down 2142 | -10/Materials | Entered Mines 2326 | -10/Mines | Assembled infested the area 2331 | -10/Mines | Assisted by a Guerilla fighting off Assembled 2402 | -10/Mines | Discovered new exit (range 8) 2421 | -10/Mines | Entered Subcaves 3021 | -10/Subcaves | Ambushed by angry Subdweller bent on revenge 3350 | -10/Subcaves | Visited Clippyterm 3797 | -10/Subcaves | Shifting Twisted Machinery released Spk. Treads 3812 | -10/Subcaves | A swath of the cavern ceiling suddenly collapsed 3881 | -10/Subcaves | Shifting Twisted Machinery released Spk. Treads 4790 | -10/Subcaves | Learned location of Zion (-7) 4790 | -10/Subcaves | Met a Zionite searching for "candidates" 4830 | -10/Subcaves | Learned Materials non-interactive machine intel 5013 | -10/Subcaves | Core integrity fell below 50% 5499 | -10/Subcaves | Discovered new exit (range 9) 7005 | -10/Subcaves | Entered Materials 7005 | -8/Materials | Evolved 4 slots: Propulsion x2, Utility x2 7006 | -8/Materials | Loaded intel: 37 non-interactive machine locations 7310 | -8/Materials | Build established: Derelict-Mutant 7578 | -8/Materials | Discovered new exit (range 6) 7809 | -8/Materials | Discovered new exit (range 15) 8256 | -8/Materials | Build established: Mutant 8308 | -8/Materials | Garrison activated, responded to threat 8705 | -8/Materials | Build established: Scavenger-Mutant 9555 | -8/Materials | Entered Factory 9555 | -7/Factory | Evolved 2 slots: Power x1, Utility x1 9893 | -7/Factory | System corruption reached 10% 10268 | -7/Factory | Identified exit to Lower Caves 10528 | -7/Factory | Entered Lower Caves 11280 | -7/Lower Caves | Discovered new exit (range 11) 11309 | -7/Lower Caves | Entered another Lower Caves area 11353 | -7/Lower Caves | Attracted the attention of an 0b10 outpost 11396 | -7/Lower Caves | Lost 3 parts (2n1u) 11398 | -7/Lower Caves | Destroyed 7 combat bots 12229 | -7/Lower Caves | Discovered new exit (range 5) 12239 | -7/Lower Caves | Entered Zion 12239 | -7/Zion | Accompanied by 1 ally 12351 | -7/Zion | System corruption cleaned by Quarantine Array 12380 | -7/Zion | System corruption cleaned by Quarantine Array 12903 | -7/Zion | Given A8's code to call for help 12992 | -7/Zion | Given the Hacking Drone Bay 12998 | -7/Zion | Found Prototype Device 13156 | -7/Zion | Learned location of Testing (-3) 13180 | -7/Zion | Learned location of Extension (-5) 13285 | -7/Zion | Learned Factory terminal intel 14614 | -7/Zion | Discovered new exit (range 4) 14641 | -7/Zion | Enhanced Grunt warped into view, answering call for help 14643 | -7/Zion | Enhanced Grunt warped into view, answering call for help 14662 | -7/Zion | Saw the warning signs outside the Deep Caves entrance 15112 | -7/Zion | Entered Deep Caves 15112 | -7/Deep Caves | Accompanied by 3 allies 15484 | -7/Deep Caves | Z-Facility disabled 15545 | -7/Deep Caves | Attacked by Z-Imprinter 15558 | -7/Deep Caves | Allies destroyed Z-Imprinter 15611 | -7/Deep Caves | Found Prototype Protection 15611 | -7/Deep Caves | Identified Zio. Weapon Casing 15646 | -7/Deep Caves | Found Zio. Weapon Casing 15694 | -7/Deep Caves | Identified Hacking Drone Bay 15932 | -7/Deep Caves | Found Zio. Weapon Casing 15996 | -7/Deep Caves | Found Zio. Weapon Casing 16070 | -7/Deep Caves | Found Prototype Protection 16070 | -7/Deep Caves | Identified Zio. Heavy Carapace 16085 | -7/Deep Caves | Found Zio. Heavy Carapace 16439 | -7/Deep Caves | Found Surveybot 24 Scanner 16549 | -7/Deep Caves | Found Surveybot 24 Chip 16832 | -7/Deep Caves | Spotted AG-72915 17025 | -7/Deep Caves | Lost 4 parts (2n2u) 17132 | -7/Deep Caves | Destroyed AG-72915 17171 | -7/Deep Caves | Triggered Deep Caves wall 17171 | -7/Deep Caves | Spotted AS-21931 17174 | -7/Deep Caves | Exposed GOLEM chamber 17190 | -7/Deep Caves | Spotted AS-35764 17193 | -7/Deep Caves | Destroyed AS-35764 17205 | -7/Deep Caves | Spotted AG-49351 17213 | -7/Deep Caves | Core integrity fell below 50% 17216 | -7/Deep Caves | Destroyed 39 combat bots 17222 | -7/Deep Caves | Destroyed AG-49351 17246 | -7/Deep Caves | Destroyed AS-21931 17273 | -7/Deep Caves | Lost 8 parts (2p5u1w) 17303 | -7/Deep Caves | Found GOLEM Unit 17349 | -7/Deep Caves | Found GOLEM Unit 17354 | -7/Deep Caves | Found GOLEM Unit 17448 | -7/Deep Caves | Found Prototype Energy Cannon 17448 | -7/Deep Caves | Identified Firepult 17779 | -7/Deep Caves | Build established: Golem 18002 | -7/Deep Caves | Found GOLEM Unit 18010 | -7/Deep Caves | Found GOLEM Unit 18013 | -7/Deep Caves | Found GOLEM Unit 18222 | -7/Deep Caves | Found Zio. Weapon Casing 18256 | -7/Deep Caves | Found Zio. Weapon Casing 18275 | -7/Deep Caves | Found Zio. Weapon Casing 18318 | -7/Deep Caves | Found Zio. Weapon Casing 18342 | -7/Deep Caves | Found Zio. Weapon Casing 19158 | -7/Deep Caves | Discovered new exit (range 6) 19171 | -7/Deep Caves | Entered Proximity Caves 19239 | -6/Proximity Caves | Attracted the attention of an 0b10 checkpoint 19285 | -6/Proximity Caves | Spotter reported a threat 19316 | -6/Proximity Caves | Destroyed 7 combat bots 19349 | -6/Proximity Caves | Spotter reported a threat 19372 | -6/Proximity Caves | Spotter reported a threat 19502 | -6/Proximity Caves | Spotter reported a threat 19738 | -6/Proximity Caves | Discovered new exit (range 12) 20074 | -6/Proximity Caves | Entered Factory 20074 | -6/Factory | Evolved 2 slots: Utility x2 20075 | -6/Factory | Loaded intel: 26 terminal locations 20328 | -6/Factory | Destroyed 8 combat bots 20424 | -6/Factory | Search patrols dispatched 20430 | -6/Factory | Spotted B-75 Beast 20462 | -6/Factory | Destroyed B-75 Beast 20556 | -6/Factory | Identified exit to Lower Caves 20711 | -6/Factory | Discovered new exit (range 10) 20774 | -6/Factory | First assault squad dispatched 20780 | -6/Factory | Entered Lower Caves 20908 | -6/Lower Caves | Learned Factory terminal intel 21237 | -6/Lower Caves | Discovered new exit (range 8) 21267 | -6/Lower Caves | Attacked by a faux Warlord 21371 | -6/Lower Caves | Learned location of 1 exit from Factory 21667 | -6/Lower Caves | Entered another Lower Caves area 21667 | -6/Lower Caves | Discovered new exit (range 8) 22220 | -6/Lower Caves | Learned Factory stockpile data 22324 | -6/Lower Caves | Discovered new exit (range 8) 22335 | -6/Lower Caves | Entered Data Miner 22335 | -6/Data Miner | Discovered new exit (range 6) 22371 | -6/Data Miner | Met Data Miner 22406 | -6/Data Miner | Learned location of Section 7 (-2) 22406 | -6/Data Miner | Acquired the access code to Warlord's prototype stash 22434 | -6/Data Miner | Received God Mode back door access code from Data Miner 22482 | -6/Data Miner | Entered Proximity Caves 22618 | -5/Proximity Caves | Attracted the attention of an 0b10 checkpoint 22692 | -5/Proximity Caves | Destroyed 9 combat bots 22697 | -5/Proximity Caves | Lost 3 parts (1n1u1w) 23493 | -5/Proximity Caves | Discovered new exit (range 13) 23526 | -5/Proximity Caves | Entered Factory 23526 | -5/Factory | Evolved 2 slots: Utility x2 23527 | -5/Factory | Identified exit to Upper Caves 23528 | -5/Factory | Identified exit to Factory 23530 | -5/Factory | Loaded intel: 28 terminal locations 23669 | -5/Factory | Identified exit to Extension 24435 | -5/Factory | Cargo convoy interrupted 24611 | -5/Factory | Entered Extension 25281 | -5/Extension | Rescued A7 25473 | -5/Extension | Build established: Commander-Golem 25713 | -5/Extension | Spotted B-75 Beast 25725 | -5/Extension | Destroyed B-75 Beast 25740 | -5/Extension | Spotted B-75 Beast 25754 | -5/Extension | Destroyed B-75 Beast 25822 | -5/Extension | Rescued a captive Derelict 25901 | -5/Extension | Rescued a captive Derelict 25906 | -5/Extension | Rescued a captive Derelict 25933 | -5/Extension | Rescued a captive Derelict 25933 | -5/Extension | Rescued a captive Derelict 26003 | -5/Extension | Rescued a captive Derelict 26004 | -5/Extension | Rescued a captive Derelict 26024 | -5/Extension | Build established: Golem 26049 | -5/Extension | Rescued a captive Derelict 26049 | -5/Extension | Rescued a captive Derelict 26057 | -5/Extension | Identified exit to Cetus 26204 | -5/Extension | Rescued a captive Derelict 26205 | -5/Extension | Rescued a captive Derelict 26418 | -5/Extension | Build established: Commander-Golem 26627 | -5/Extension | Entered Cetus 26627 | -5/Cetus | Accompanied by 16 allies (A7) 26632 | -5/Cetus | Acquired a Cetus Manufacturing Module code from A7 26650 | -5/Cetus | Spotted Cetus Guard 26650 | -5/Cetus | Spotted Cetus Guard 26652 | -5/Cetus | Spotted Cetus Guard 26652 | -5/Cetus | Spotted Cetus Guard 26666 | -5/Cetus | Allies destroyed Cetus Guard 26671 | -5/Cetus | Allies destroyed Cetus Guard 26672 | -5/Cetus | Allies destroyed Cetus Guard 26672 | -5/Cetus | Allies destroyed Cetus Guard 26699 | -5/Cetus | Lost 6 allies 26762 | -5/Cetus | Started Cetus Manufacturing Module 26787 | -5/Cetus | Manufactured an Enhanced Grunt 26792 | -5/Cetus | Cetus Manufacturing Module disabled 26835 | -5/Cetus | Discovered new exit (range 16) 26884 | -5/Cetus | Spotted Cetus Guard 26884 | -5/Cetus | Spotted Cetus Guard 26888 | -5/Cetus | Spotted Cetus Guard 26888 | -5/Cetus | Spotted Cetus Guard 26896 | -5/Cetus | Allies destroyed Cetus Guard 26903 | -5/Cetus | Allies destroyed Cetus Guard 26909 | -5/Cetus | Destroyed Cetus Guard 26912 | -5/Cetus | Destroyed Cetus Guard 26928 | -5/Cetus | Extracted ID and sensor layout for unrecognized location from A7's data core 26928 | -5/Cetus | Discovered exit to Factory (range 16) 26939 | -5/Cetus | Lost 6 allies 26948 | -5/Cetus | Met Revision 17 27070 | -5/Cetus | Entered Archives 27070 | -5/Archives | Accompanied by 3 allies 27140 | -5/Archives | Lost 3 allies 27184 | -5/Archives | Discovered new exit (range 15) 27221 | -5/Archives | Entered Hub_04(d) 27250 | -5/Hub_04(d) | Build established: Scavenger-Golem 27300 | -5/Hub_04(d) | Discovered exit to Factory (range 13) 27458 | -5/Hub_04(d) | Network Hub disabled 27461 | -5/Hub_04(d) | Entered Factory 27461 | -4/Factory | Evolved 2 slots: Utility x2 27711 | -4/Factory | First assault squad dispatched 28229 | -4/Factory | Build established: Golem 28364 | -4/Factory | Lost 5 parts (2p1u2w) 28433 | -4/Factory | Released all parts (8) 28452 | -4/Factory | Core integrity fell below 50% 28464 | -4/Factory | Lost 4 parts (3n1u) 28477 | -4/Factory | Identified exit to Upper Caves 28477 | -4/Factory | Identified exit to Armory 28489 | -4/Factory | Spotted B-86 Titan 28489 | -4/Factory | Discovered new exit (range 15) 28495 | -4/Factory | Entered Research 28495 | -3/Research | Evolved 2 slots: Utility x2 28728 | -3/Research | Build established: Mutant 29203 | -3/Research | Build established: Golem 29424 | -3/Research | Garrison activated, responded to threat 29441 | -3/Research | Discovered new exit (range 13) 29534 | -3/Research | First assault squad dispatched 29601 | -3/Research | Destroyed 9 combat bots 29611 | -3/Research | Entered another Research area 29611 | -2/Research | Evolved 2 slots: Utility x2 29770 | -2/Research | Discovered new exit (range 16) 29806 | -2/Research | Entered Quarantine 29952 | -2/Quarantine | Destroyed 7 combat bots 30055 | -2/Quarantine | Destroyed 9 combat bots 30090 | -2/Quarantine | First assault squad dispatched 30275 | -2/Quarantine | Found Alien Impact Weapon 30324 | -2/Quarantine | Found Alien Artifact 30324 | -2/Quarantine | Identified Phase Redirector 30365 | -2/Quarantine | Found Alien Energy Cannon 30444 | -2/Quarantine | Discovered new exit (range 11) 30473 | -2/Quarantine | Identified Core Cannon 30475 | -2/Quarantine | Identified Core Stripper 30498 | -2/Quarantine | Spotted Fortress 30510 | -2/Quarantine | Destroyed Fortress 30515 | -2/Quarantine | Found Hvy. Insulated Plating 30518 | -2/Quarantine | Found Prototype Reactor 30518 | -2/Quarantine | Identified Vortex Chain Reactor 30521 | -2/Quarantine | Found Prototype Protection 30521 | -2/Quarantine | Identified Centrium Heavy Armor Plating 30544 | -2/Quarantine | Found Prototype Device 30544 | -2/Quarantine | Identified Exp. EM Disruption Field 30546 | -2/Quarantine | Found Prototype Device 30546 | -2/Quarantine | Identified Thermal Barrier 30620 | -2/Quarantine | Discovered new exit (range 6) 30639 | -2/Quarantine | Entered Section 7 31003 | -2/Section 7 | Destroyed 9 combat bots 31007 | -2/Section 7 | Found Prototype Device 31007 | -2/Section 7 | Identified Adv. EM Disruption Field 31139 | -2/Section 7 | First assault squad dispatched 31157 | -2/Section 7 | Spotted S7 Guard 31232 | -2/Section 7 | Found Alien Artifact 31232 | -2/Section 7 | Identified Integrity Redistributor 31232 | -2/Section 7 | Used Integrity Redistributor, redistributed integrity from core (-257) 31257 | -2/Section 7 | Found Alien Artifact 31257 | -2/Section 7 | Identified Integrated Dissipator 31257 | -2/Section 7 | Installed Integrated Dissipator, increased core heat dissipation (+20) 31335 | -2/Section 7 | Build established: Hacker-Golem 31382 | -2/Section 7 | Identified exit to Access 31480 | -2/Section 7 | Found Alien Artifact 31480 | -2/Section 7 | Identified Spacefold Activator 31565 | -2/Section 7 | Spotted S7 Guard 31572 | -2/Section 7 | Found Alien Artifact 31577 | -2/Section 7 | Spotted S7 Guard 31590 | -2/Section 7 | Found Alien Artifact 31590 | -2/Section 7 | Identified Integrated Thermoelectric Network 31590 | -2/Section 7 | Installed Integrated Thermoelectric Network, gained heat-energy exchange potential 31594 | -2/Section 7 | Core integrity fell below 50% 31601 | -2/Section 7 | Entered Access 31601 | -1/Access | Evolved 2 slots: Power x1, Utility x1 31630 | -1/Access | Lost 5 parts (3u2w) 31669 | -1/Access | Identified Navigation Efficiency Matrix 31669 | -1/Access | Installed Navigation Efficiency Matrix, process failed with unexpected side effects 31880 | -1/Access | Build established: Hacker-Mutant 32036 | -1/Access | Crushed by falling debris 32133 | -1/Access | First assault squad dispatched 32516 | -1/Access | Destroyed 7 combat bots 32524 | -1/Access | Lost 5 parts (1p3u1w) 32996 | -1/Access | Crushed by falling debris 33031 | -1/Access | Core integrity fell below 50% 33033 | -1/Access | Discovered new exit (range 6) 33039 | -1/Access | Spotted B-99 Colossus 33039 | -1/Access | Spotted B-99 Colossus 33043 | -1/Access | Entered Command 33285 | -1/Command | Build established: Golem 33319 | -1/Command | Identified exit to Surface 33353 | -1/Command | Lost 3 parts (2u1w) 33490 | -1/Command | Spotted Executioner 33490 | -1/Command | Spotted Executioner 33490 | -1/Command | Spotted Striker 33490 | -1/Command | Spotted Alpha 7 33490 | *** | Escaped! Last Messages --------------- C003. 33442_ Spacefolded through Wall. 33445_ Navigation matrix triggers involuntary quantum shift. 33454_ Slammed into K-01 Serf. 33454_ Destabilizing: System corrupted (+1). 33456_ Slammed into K-01 Serf. 33457_ Destabilizing: System interference. 33457_ Machine Analyzer temporarily disabled. 33457_ Imp. Armor Integrity Analyzer temporarily disabled. 33461_ Navigation matrix triggers involuntary quantum shift. 33479_ Spacefolded through Wall. 33481_ Triggered Stasis Trap. 33481_ A bubble of rippling energy engulfs the area. 33481_ Field strength at 94. 33483_ Beam penetrates Access Shell. 33483_ Access Shell breached. 33483_ Beam penetrates Access Shell. 33485_ Field strength at 88. 33486_ Stasis field depleted. 33488_ >1DXVSAH56AR,LYISSAJX1SKOX/YV Map ----- +----------------------------------------------------+ | ?????????????????????????????????????????????????? | | ?????????????????????????????????????????????????? | | ?????????????????????????????????????????????????? | | ?????????????????????????????????????????????????? | | ?????????????????????????????????????????????????? | | ?????????????????????????????????????????????????? | | ?????????????????????????????????????????????????? | | ?????????????????????????????????????????????????? | | ?????????????????????????????????????????????????? | | ?????????????????????????????????????????????????? | | ?????????????????????????????????????????????????? | | ?????#############???????????????????????????????? | | ?????# #???????????????????????????????? | | ??? # #???????????????????????????????? | | ??? # #???????????????????????????????? | | ??? # #???????????????????????????????? | | ??# # #???????????????????????????????? | | ??# # #???????????????????????????????? | | ??# + """" #?#########?????????????????????? | | ??# # """" #?# ??????????????????????? | | ??# # """" #?# ???????????????????????? | | ??# # """" #?# ????????E#E#K#7?????????? | | ??# # #?# """"""?? ????????? | | ??# # #?# " " ^ ????????? | | ??# # ### "" ????????? | | ??# ####/########?# " @" " ????????? | | ??# #??# #????????# " "?????? ????????? | | ??# #??# #????????# """"""????????????????????? | | ??# #### ####?????# ?????????????????????????? | | ??# #?????# ????????????????????????? | | ??# #?????# ???????????????????????? | | ??# #?????########??????????????????????? | | ??# #???????????????????????????????????? | | ??# #???????????????????????????????????? | | ??#+#####+##+######??????????????????????????????? | | ?? #??????????????????????????????? | | ?? +??????????????????????????????? | | # "" "" == #??????????????????????????????? | | # ""R"" = #??????????????????????????????? | | """" #??????????????????????????????? | | # #??????????????????????????????? | | # #??????????????????????????????? | | ?########/########??####+##+####+#???????????????? | | ????????# #?????????# #???????????????? | | ????????# #?????????# #???????????????? | | ????????# #?????????# #???????????????? | | ????????# ########### #???????????????? | | ????????# # ! #???????????????? | | ????????####### # #???????????????? | | ??????????????# + #???????????????? | +----------------------------------------------------+ Best States ------------- Heat Dissipation 117 Energy Generation 138 Energy Capacity 2950 Matter Stores 300 Matter Capacity 300 Sight Range 16 Terrain Scan Density 10 Jamming Range 14 Power Amplification 90 Additional Mass Support 20 Armor Coverage 1350 Resistance: KI 15 Resistance: TH 50 Resistance: EX 15 Resistance: EM 75 Resistance: I 15 Resistance: S 15 Resistance: P 15 Propulsion Shielding 66 Weapon Shielding 100 Point Defense Rating 240 Phase Shifting 8 Evasion (%) 64 Targeting Accuracy 8 Core Analysis 8 Armor Integrity Analysis 40 Recoil Reduction 4 Offensive Hacking 26 Defensive Hacking 22 Item Schematics ----------------- Arm. Treads | -8/Materials | Scanalyzed Beamcaster | -7/Zion | Free Arc Thrower | -7/Zion | Free Slug Cannon | -7/Zion | Free Flamer | -7/Zion | Free Enh. Flamer | -7/Zion | Free Ripper | -7/Zion | Free Tactical Coordination Suite | -7/Zion | Free Hvy. Rocket Launcher | -7/Zion | Archive Coil Gun | -7/Zion | Archive Mak. Leg | -7/Zion | Archive Enh. Optical Array | -7/Zion | Archive Adv. Cooling System | -7/Zion | Archive EM Disruption Field | -7/Zion | Archive Arm. Huge Wheel | -7/Zion | Archive Lyr. Medium Armor Plating | -7/Zion | Archive Mak. Laser | -7/Zion | Archive Imp. System Restoration Module | -7/Zion | Archive Mak. Shrapnel Gun | -7/Zion | Archive Flak Gun | -7/Zion | Archive Imp. Component Analysis Suite | -7/Zion | Archive Combat Drone Bay | -6/Data Miner | Free Lgt. Regenerative Plating | -6/Data Miner | Free Enh. Flexi-carbon Leg | -6/Data Miner | Free Prc. Energy Filter | -6/Data Miner | Free Cld. Plasma Rifle | -6/Data Miner | Free Imp. Antigrav System | -6/Data Miner | Free Imp. Cloaking Device | -6/Data Miner | Free Hardcell Cannon | -6/Data Miner | Free Robot Schematics ------------------ K-01 Serf | -7/Zion | Archive A-02 Transporter | -7/Zion | Archive L-41 Fighter | -7/Zion | Archive D-83 Annihilator | -7/Zion | Archive Y-64 Sentinel | -6/Data Miner | Free E-15 Imp | -6/Data Miner | Free B-48 Gladiator | -6/Data Miner | Free R-10 Processor | -6/Data Miner | Free M-30 Cleanser | -6/Data Miner | Free W-44 Eye | -6/Data Miner | Free Fabricated ------------ Nothing Alien Tech Used ----------------- Phase Redirector Core Cannon Core Stripper Integrity Redistributor Integrated Dissipator Spacefold Activator Integrated Thermoelectric Network Navigation Efficiency Matrix Achievements -------------- None Challenges ------------ None Game ------ Seed WardroneRainbowPlating Manual? 0 Play Time 02:32:12 Cumulative 880.5 hours Start 2024.03.18 @ 18:31:53 End 2024.03.18 @ 21:34:02 Sessions 3 Manual Loads 0 Difficulty Rogue Special Mode None Game No. 1343 Rogue 1343 Adventurer 0 Explorer 0 Win Type 0 Total 84 Types 50/1/14/14/4/0/0/1/0 Lore% 90 Gallery% 92 Achievement% 85 Wizard Run 0 Options --------- Layout 0 ASCII 1 Keyboard 0 Movement Numpad Keybinds 0 Fullscreen 2 Font 18/SmallcapsGlow Map View 76x50 Zoom Use 0% Tactical HUD 1 Map Filters NONE Filters NONE Steam 1 RUN: 5d9d09bf-78fe-4119-9b3b-bdfeb85f94cc